Workbook

Sheet Factură
B1: Numele firmei
B2: Adresă poștală | D2: T: Număr de telefon | F2: E-mail
B3: Localitate, județ, cod poștal | D3: F: Număr de fax | F3: Site web
B4: Facturat către: | C4: =IFERROR(VLOOKUP(VLOOKUP(rngFactură,FacturiPrincipale[],2,FALSE),ListăClienți[],3,TRUE),"") -> Contoso, Ltd | D4: ="Telefon: "&IFERROR(VLOOKUP(VLOOKUP(rngFactură,FacturiPrincipale[],2,FALSE),ListăClienți[],9,FALSE),"") -> Telefon: 432 555 0189 | F4: Nr. factură: | G4: 3-456-2
B5: Adresa: | C5: =IFERROR(IF((VLOOKUP(VLOOKUP(rngFactură,FacturiPrincipale[],2,FALSE),ListăClienți[],5,FALSE))="","",(VLOOKUP(VLOOKUP(rngFactură,FacturiPrincipale[],2,FALSE),ListăClienți[],5,FALSE))),"") -> Aleea Castanilor 567 | D5: ="Fax: "&IFERROR(VLOOKUP(VLOOKUP(rngFactură,FacturiPrincipale[],2,FALSE),ListăClienți[],11,FALSE),"") -> Fax: 432 555 0123 | F5: Data facturii: | G5: =IFERROR(IF(VLOOKUP(rngFactură,FacturiPrincipale[],3,FALSE)="","",VLOOKUP(rngFactură,FacturiPrincipale[],3,FALSE)),"") -> 4368500.00%
C6: =IFERROR(VLOOKUP(VLOOKUP(rngFactură,FacturiPrincipale[],2,FALSE),ListăClienți[],6,FALSE)&", "& VLOOKUP(VLOOKUP(G4,FacturiPrincipale[],2,FALSE),ListăClienți[],7,FALSE)&" "&VLOOKUP(VLOOKUP(G4,FacturiPrincipale[],2,FALSE),ListăClienți[],8,FALSE),"") -> Moreni, DB 098765 | D6: ="E-mail: "&IFERROR(VLOOKUP(VLOOKUP(rngFactură,FacturiPrincipale[],2,FALSE),ListăClienți[],10,FALSE),"") -> E-mail: cineva@example.com
B7: ="Invoice For: "&IFERROR(VLOOKUP(rngFactură,FacturiPrincipale[],4),"") -> Invoice For: Proiectul 2
B8: Nr. articol | C8: Descriere | D8: Cantitate | E8: Preț unitar | F8: Reducere | G8: Preț
B9: =IFERROR(INDEX(DetaliiFactură[],SMALL(IF(DetaliiFactură[Nr. factură]=rngFactură,ROW(DetaliiFactură[])-ROW(DetaliiFactură[#Headers])), ROW(1:1)), MATCH($B$8, DetaliiFactură[#Headers], 0)),"") -> Z4567 | C9: =IFERROR(INDEX(DetaliiFactură[],SMALL(IF(DetaliiFactură[Nr. factură]=rngFactură,ROW(DetaliiFactură[])-ROW(DetaliiFactură[#Headers])), ROW(1:1)), MATCH($C$8, DetaliiFactură[#Headers], 0)),"") -> Factură 3-456-2 Data 1 | D9: =IFERROR(INDEX(DetaliiFactură[],SMALL(IF(DetaliiFactură[Nr. factură]=rngFactură,ROW(DetaliiFactură[])-ROW(DetaliiFactură[#Headers])), ROW(1:1)), MATCH($D$8, DetaliiFactură[#Headers], 0)),"") -> 39 | E9: =IFERROR(INDEX(DetaliiFactură[],SMALL(IF(DetaliiFactură[Nr. factură]=rngFactură,ROW(DetaliiFactură[])-ROW(DetaliiFactură[#Headers])), ROW(1:1)), MATCH($E$8, DetaliiFactură[#Headers], 0)),"") -> 5.00 lei | F9: =IFERROR(INDEX(DetaliiFactură[],SMALL(IF(DetaliiFactură[Nr. factură]=rngFactură,ROW(DetaliiFactură[])-ROW(DetaliiFactură[#Headers])), ROW(1:1)), MATCH($F$8, DetaliiFactură[#Headers], 0)),"") -> 0 | G9: =IFERROR((D9*E9)-F9,"") -> 195.00 lei
B10: =IFERROR(INDEX(DetaliiFactură[],SMALL(IF(DetaliiFactură[Nr. factură]=rngFactură,ROW(DetaliiFactură[])-ROW(DetaliiFactură[#Headers])), ROW(2:2)), MATCH($B$8, DetaliiFactură[#Headers], 0)),"") -> Z4568 | C10: =IFERROR(INDEX(DetaliiFactură[],SMALL(IF(DetaliiFactură[Nr. factură]=rngFactură,ROW(DetaliiFactură[])-ROW(DetaliiFactură[#Headers])), ROW(2:2)), MATCH($C$8, DetaliiFactură[#Headers], 0)),"") -> Factură 3-456-2 Data 2 | D10: =IFERROR(INDEX(DetaliiFactură[],SMALL(IF(DetaliiFactură[Nr. factură]=rngFactură,ROW(DetaliiFactură[])-ROW(DetaliiFactură[#Headers])), ROW(2:2)), MATCH($D$8, DetaliiFactură[#Headers], 0)),"") -> 40 | E10: =IFERROR(INDEX(DetaliiFactură[],SMALL(IF(DetaliiFactură[Nr. factură]=rngFactură,ROW(DetaliiFactură[])-ROW(DetaliiFactură[#Headers])), ROW(2:2)), MATCH($E$8, DetaliiFactură[#Headers], 0)),"") -> 4.00 lei | F10: =IFERROR(INDEX(DetaliiFactură[],SMALL(IF(DetaliiFactură[Nr. factură]=rngFactură,ROW(DetaliiFactură[])-ROW(DetaliiFactură[#Headers])), ROW(2:2)), MATCH($F$8, DetaliiFactură[#Headers], 0)),"") -> 5.00 lei | G10: 155.00 lei
B11: =IFERROR(INDEX(DetaliiFactură[],SMALL(IF(DetaliiFactură[Nr. factură]=rngFactură,ROW(DetaliiFactură[])-ROW(DetaliiFactură[#Headers])), ROW(3:3)), MATCH($B$8, DetaliiFactură[#Headers], 0)),"") -> Z4569 | C11: =IFERROR(INDEX(DetaliiFactură[],SMALL(IF(DetaliiFactură[Nr. factură]=rngFactură,ROW(DetaliiFactură[])-ROW(DetaliiFactură[#Headers])), ROW(3:3)), MATCH($C$8, DetaliiFactură[#Headers], 0)),"") -> Factură 3-456-2 Data 3 | D11: =IFERROR(INDEX(DetaliiFactură[],SMALL(IF(DetaliiFactură[Nr. factură]=rngFactură,ROW(DetaliiFactură[])-ROW(DetaliiFactură[#Headers])), ROW(3:3)), MATCH($D$8, DetaliiFactură[#Headers], 0)),"") -> 30 | E11: =IFERROR(INDEX(DetaliiFactură[],SMALL(IF(DetaliiFactură[Nr. factură]=rngFactură,ROW(DetaliiFactură[])-ROW(DetaliiFactură[#Headers])), ROW(3:3)), MATCH($E$8, DetaliiFactură[#Headers], 0)),"") -> 6.00 lei | F11: =IFERROR(INDEX(DetaliiFactură[],SMALL(IF(DetaliiFactură[Nr. factură]=rngFactură,ROW(DetaliiFactură[])-ROW(DetaliiFactură[#Headers])), ROW(3:3)), MATCH($F$8, DetaliiFactură[#Headers], 0)),"") -> 7.00 lei | G11: 173.00 lei
B12: =IFERROR(INDEX(DetaliiFactură[],SMALL(IF(DetaliiFactură[Nr. factură]=rngFactură,ROW(DetaliiFactură[])-ROW(DetaliiFactură[#Headers])), ROW(4:4)), MATCH($B$8, DetaliiFactură[#Headers], 0)),"") -> Z4570 | C12: =IFERROR(INDEX(DetaliiFactură[],SMALL(IF(DetaliiFactură[Nr. factură]=rngFactură,ROW(DetaliiFactură[])-ROW(DetaliiFactură[#Headers])), ROW(4:4)), MATCH($C$8, DetaliiFactură[#Headers], 0)),"") -> Factură 3-456-2 Data 4 | D12: =IFERROR(INDEX(DetaliiFactură[],SMALL(IF(DetaliiFactură[Nr. factură]=rngFactură,ROW(DetaliiFactură[])-ROW(DetaliiFactură[#Headers])), ROW(4:4)), MATCH($D$8, DetaliiFactură[#Headers], 0)),"") -> 40 | E12: =IFERROR(INDEX(DetaliiFactură[],SMALL(IF(DetaliiFactură[Nr. factură]=rngFactură,ROW(DetaliiFactură[])-ROW(DetaliiFactură[#Headers])), ROW(4:4)), MATCH($E$8, DetaliiFactură[#Headers], 0)),"") -> 7.00 lei | F12: =IFERROR(INDEX(DetaliiFactură[],SMALL(IF(DetaliiFactură[Nr. factură]=rngFactură,ROW(DetaliiFactură[])-ROW(DetaliiFactură[#Headers])), ROW(4:4)), MATCH($F$8, DetaliiFactură[#Headers], 0)),"") -> 0 | G12: 280.00 lei
B13: =IFERROR(INDEX(DetaliiFactură[],SMALL(IF(DetaliiFactură[Nr. factură]=rngFactură,ROW(DetaliiFactură[])-ROW(DetaliiFactură[#Headers])), ROW(5:5)), MATCH($B$8, DetaliiFactură[#Headers], 0)),"") -> Z4571 | C13: =IFERROR(INDEX(DetaliiFactură[],SMALL(IF(DetaliiFactură[Nr. factură]=rngFactură,ROW(DetaliiFactură[])-ROW(DetaliiFactură[#Headers])), ROW(5:5)), MATCH($C$8, DetaliiFactură[#Headers], 0)),"") -> Factură 3-456-2 Data 5 | D13: =IFERROR(INDEX(DetaliiFactură[],SMALL(IF(DetaliiFactură[Nr. factură]=rngFactură,ROW(DetaliiFactură[])-ROW(DetaliiFactură[#Headers])), ROW(5:5)), MATCH($D$8, DetaliiFactură[#Headers], 0)),"") -> 10 | E13: =IFERROR(INDEX(DetaliiFactură[],SMALL(IF(DetaliiFactură[Nr. factură]=rngFactură,ROW(DetaliiFactură[])-ROW(DetaliiFactură[#Headers])), ROW(5:5)), MATCH($E$8, DetaliiFactură[#Headers], 0)),"") -> 4.00 lei | F13: =IFERROR(INDEX(DetaliiFactură[],SMALL(IF(DetaliiFactură[Nr. factură]=rngFactură,ROW(DetaliiFactură[])-ROW(DetaliiFactură[#Headers])), ROW(5:5)), MATCH($F$8, DetaliiFactură[#Headers], 0)),"") -> 0 | G13: 40.00 lei
B14: =IFERROR(INDEX(DetaliiFactură[],SMALL(IF(DetaliiFactură[Nr. factură]=rngFactură,ROW(DetaliiFactură[])-ROW(DetaliiFactură[#Headers])), ROW(6:6)), MATCH($B$8, DetaliiFactură[#Headers], 0)),"") -> Z4572 | C14: =IFERROR(INDEX(DetaliiFactură[],SMALL(IF(DetaliiFactură[Nr. factură]=rngFactură,ROW(DetaliiFactură[])-ROW(DetaliiFactură[#Headers])), ROW(6:6)), MATCH($C$8, DetaliiFactură[#Headers], 0)),"") -> Factură 3-456-2 Data 6 | D14: =IFERROR(INDEX(DetaliiFactură[],SMALL(IF(DetaliiFactură[Nr. factură]=rngFactură,ROW(DetaliiFactură[])-ROW(DetaliiFactură[#Headers])), ROW(6:6)), MATCH($D$8, DetaliiFactură[#Headers], 0)),"") -> 5 | E14: =IFERROR(INDEX(DetaliiFactură[],SMALL(IF(DetaliiFactură[Nr. factură]=rngFactură,ROW(DetaliiFactură[])-ROW(DetaliiFactură[#Headers])), ROW(6:6)), MATCH($E$8, DetaliiFactură[#Headers], 0)),"") -> 8.00 lei | F14: =IFERROR(INDEX(DetaliiFactură[],SMALL(IF(DetaliiFactură[Nr. factură]=rngFactură,ROW(DetaliiFactură[])-ROW(DetaliiFactură[#Headers])), ROW(6:6)), MATCH($F$8, DetaliiFactură[#Headers], 0)),"") -> 0 | G14: 40.00 lei
B15: =IFERROR(INDEX(DetaliiFactură[],SMALL(IF(DetaliiFactură[Nr. factură]=rngFactură,ROW(DetaliiFactură[])-ROW(DetaliiFactură[#Headers])), ROW(7:7)), MATCH($B$8, DetaliiFactură[#Headers], 0)),"") -> Z4573 | C15: =IFERROR(INDEX(DetaliiFactură[],SMALL(IF(DetaliiFactură[Nr. factură]=rngFactură,ROW(DetaliiFactură[])-ROW(DetaliiFactură[#Headers])), ROW(7:7)), MATCH($C$8, DetaliiFactură[#Headers], 0)),"") -> Factură 3-456-2 Data 7 | D15: =IFERROR(INDEX(DetaliiFactură[],SMALL(IF(DetaliiFactură[Nr. factură]=rngFactură,ROW(DetaliiFactură[])-ROW(DetaliiFactură[#Headers])), ROW(7:7)), MATCH($D$8, DetaliiFactură[#Headers], 0)),"") -> 70 | E15: =IFERROR(INDEX(DetaliiFactură[],SMALL(IF(DetaliiFactură[Nr. factură]=rngFactură,ROW(DetaliiFactură[])-ROW(DetaliiFactură[#Headers])), ROW(7:7)), MATCH($E$8, DetaliiFactură[#Headers], 0)),"") -> 6.00 lei | F15: =IFERROR(INDEX(DetaliiFactură[],SMALL(IF(DetaliiFactură[Nr. factură]=rngFactură,ROW(DetaliiFactură[])-ROW(DetaliiFactură[#Headers])), ROW(7:7)), MATCH($F$8, DetaliiFactură[#Headers], 0)),"") -> 0 | G15: 420.00 lei
B16: =IFERROR(INDEX(DetaliiFactură[],SMALL(IF(DetaliiFactură[Nr. factură]=rngFactură,ROW(DetaliiFactură[])-ROW(DetaliiFactură[#Headers])), ROW(8:8)), MATCH($B$8, DetaliiFactură[#Headers], 0)),"") -> Z4574 | C16: =IFERROR(INDEX(DetaliiFactură[],SMALL(IF(DetaliiFactură[Nr. factură]=rngFactură,ROW(DetaliiFactură[])-ROW(DetaliiFactură[#Headers])), ROW(8:8)), MATCH($C$8, DetaliiFactură[#Headers], 0)),"") -> Factură 3-456-2 Data 8 | D16: =IFERROR(INDEX(DetaliiFactură[],SMALL(IF(DetaliiFactură[Nr. factură]=rngFactură,ROW(DetaliiFactură[])-ROW(DetaliiFactură[#Headers])), ROW(8:8)), MATCH($D$8, DetaliiFactură[#Headers], 0)),"") -> 25 | E16: =IFERROR(INDEX(DetaliiFactură[],SMALL(IF(DetaliiFactură[Nr. factură]=rngFactură,ROW(DetaliiFactură[])-ROW(DetaliiFactură[#Headers])), ROW(8:8)), MATCH($E$8, DetaliiFactură[#Headers], 0)),"") -> 4.00 lei | F16: =IFERROR(INDEX(DetaliiFactură[],SMALL(IF(DetaliiFactură[Nr. factură]=rngFactură,ROW(DetaliiFactură[])-ROW(DetaliiFactură[#Headers])), ROW(8:8)), MATCH($F$8, DetaliiFactură[#Headers], 0)),"") -> 0 | G16: 100.00 lei
B17: =IFERROR(INDEX(DetaliiFactură[],SMALL(IF(DetaliiFactură[Nr. factură]=rngFactură,ROW(DetaliiFactură[])-ROW(DetaliiFactură[#Headers])), ROW(9:9)), MATCH($B$8, DetaliiFactură[#Headers], 0)),"") -> Z4575 | C17: =IFERROR(INDEX(DetaliiFactură[],SMALL(IF(DetaliiFactură[Nr. factură]=rngFactură,ROW(DetaliiFactură[])-ROW(DetaliiFactură[#Headers])), ROW(9:9)), MATCH($C$8, DetaliiFactură[#Headers], 0)),"") -> Factură 3-456-2 Data 9 | D17: =IFERROR(INDEX(DetaliiFactură[],SMALL(IF(DetaliiFactură[Nr. factură]=rngFactură,ROW(DetaliiFactură[])-ROW(DetaliiFactură[#Headers])), ROW(9:9)), MATCH($D$8, DetaliiFactură[#Headers], 0)),"") -> 5 | E17: =IFERROR(INDEX(DetaliiFactură[],SMALL(IF(DetaliiFactură[Nr. factură]=rngFactură,ROW(DetaliiFactură[])-ROW(DetaliiFactură[#Headers])), ROW(9:9)), MATCH($E$8, DetaliiFactură[#Headers], 0)),"") -> 7.00 lei | F17: =IFERROR(INDEX(DetaliiFactură[],SMALL(IF(DetaliiFactură[Nr. factură]=rngFactură,ROW(DetaliiFactură[])-ROW(DetaliiFactură[#Headers])), ROW(9:9)), MATCH($F$8, DetaliiFactură[#Headers], 0)),"") -> 3.00 lei | G17: 32.00 lei
B18: =IFERROR(INDEX(DetaliiFactură[],SMALL(IF(DetaliiFactură[Nr. factură]=rngFactură,ROW(DetaliiFactură[])-ROW(DetaliiFactură[#Headers])), ROW(10:10)), MATCH($B$8, DetaliiFactură[#Headers], 0)),"") -> Z4576 | C18: =IFERROR(INDEX(DetaliiFactură[],SMALL(IF(DetaliiFactură[Nr. factură]=rngFactură,ROW(DetaliiFactură[])-ROW(DetaliiFactură[#Headers])), ROW(10:10)), MATCH($C$8, DetaliiFactură[#Headers], 0)),"") -> Factură 3-456-2 Data 10 | D18: =IFERROR(INDEX(DetaliiFactură[],SMALL(IF(DetaliiFactură[Nr. factură]=rngFactură,ROW(DetaliiFactură[])-ROW(DetaliiFactură[#Headers])), ROW(10:10)), MATCH($D$8, DetaliiFactură[#Headers], 0)),"") -> 80 | E18: =IFERROR(INDEX(DetaliiFactură[],SMALL(IF(DetaliiFactură[Nr. factură]=rngFactură,ROW(DetaliiFactură[])-ROW(DetaliiFactură[#Headers])), ROW(10:10)), MATCH($E$8, DetaliiFactură[#Headers], 0)),"") -> 1.00 lei | F18: =IFERROR(INDEX(DetaliiFactură[],SMALL(IF(DetaliiFactură[Nr. factură]=rngFactură,ROW(DetaliiFactură[])-ROW(DetaliiFactură[#Headers])), ROW(10:10)), MATCH($F$8, DetaliiFactură[#Headers], 0)),"") -> 0 | G18: 80.00 lei
B19: =IFERROR(INDEX(DetaliiFactură[],SMALL(IF(DetaliiFactură[Nr. factură]=rngFactură,ROW(DetaliiFactură[])-ROW(DetaliiFactură[#Headers])), ROW(11:11)), MATCH($B$8, DetaliiFactură[#Headers], 0)),"") -> Z4577 | C19: =IFERROR(INDEX(DetaliiFactură[],SMALL(IF(DetaliiFactură[Nr. factură]=rngFactură,ROW(DetaliiFactură[])-ROW(DetaliiFactură[#Headers])), ROW(11:11)), MATCH($C$8, DetaliiFactură[#Headers], 0)),"") -> Factură 3-456-2 Data 11 | D19: =IFERROR(INDEX(DetaliiFactură[],SMALL(IF(DetaliiFactură[Nr. factură]=rngFactură,ROW(DetaliiFactură[])-ROW(DetaliiFactură[#Headers])), ROW(11:11)), MATCH($D$8, DetaliiFactură[#Headers], 0)),"") -> 65 | E19: =IFERROR(INDEX(DetaliiFactură[],SMALL(IF(DetaliiFactură[Nr. factură]=rngFactură,ROW(DetaliiFactură[])-ROW(DetaliiFactură[#Headers])), ROW(11:11)), MATCH($E$8, DetaliiFactură[#Headers], 0)),"") -> 7.00 lei | F19: =IFERROR(INDEX(DetaliiFactură[],SMALL(IF(DetaliiFactură[Nr. factură]=rngFactură,ROW(DetaliiFactură[])-ROW(DetaliiFactură[#Headers])), ROW(11:11)), MATCH($F$8, DetaliiFactură[#Headers], 0)),"") -> 0 | G19: 455.00 lei
B20: =IFERROR(INDEX(DetaliiFactură[],SMALL(IF(DetaliiFactură[Nr. factură]=rngFactură,ROW(DetaliiFactură[])-ROW(DetaliiFactură[#Headers])), ROW(12:12)), MATCH($B$8, DetaliiFactură[#Headers], 0)),"") -> Z4578 | C20: =IFERROR(INDEX(DetaliiFactură[],SMALL(IF(DetaliiFactură[Nr. factură]=rngFactură,ROW(DetaliiFactură[])-ROW(DetaliiFactură[#Headers])), ROW(12:12)), MATCH($C$8, DetaliiFactură[#Headers], 0)),"") -> Factură 3-456-2 Data 12 | D20: =IFERROR(INDEX(DetaliiFactură[],SMALL(IF(DetaliiFactură[Nr. factură]=rngFactură,ROW(DetaliiFactură[])-ROW(DetaliiFactură[#Headers])), ROW(12:12)), MATCH($D$8, DetaliiFactură[#Headers], 0)),"") -> 44 | E20: =IFERROR(INDEX(DetaliiFactură[],SMALL(IF(DetaliiFactură[Nr. factură]=rngFactură,ROW(DetaliiFactură[])-ROW(DetaliiFactură[#Headers])), ROW(12:12)), MATCH($E$8, DetaliiFactură[#Headers], 0)),"") -> 1.00 lei | F20: =IFERROR(INDEX(DetaliiFactură[],SMALL(IF(DetaliiFactură[Nr. factură]=rngFactură,ROW(DetaliiFactură[])-ROW(DetaliiFactură[#Headers])), ROW(12:12)), MATCH($F$8, DetaliiFactură[#Headers], 0)),"") -> 0 | G20: 44.00 lei
B21: =IFERROR(INDEX(DetaliiFactură[],SMALL(IF(DetaliiFactură[Nr. factură]=rngFactură,ROW(DetaliiFactură[])-ROW(DetaliiFactură[#Headers])), ROW(13:13)), MATCH($B$8, DetaliiFactură[#Headers], 0)),"") ->  | C21: =IFERROR(INDEX(DetaliiFactură[],SMALL(IF(DetaliiFactură[Nr. factură]=rngFactură,ROW(DetaliiFactură[])-ROW(DetaliiFactură[#Headers])), ROW(13:13)), MATCH($C$8, DetaliiFactură[#Headers], 0)),"") ->  | D21: =IFERROR(INDEX(DetaliiFactură[],SMALL(IF(DetaliiFactură[Nr. factură]=rngFactură,ROW(DetaliiFactură[])-ROW(DetaliiFactură[#Headers])), ROW(13:13)), MATCH($D$8, DetaliiFactură[#Headers], 0)),"") ->  | E21: =IFERROR(INDEX(DetaliiFactură[],SMALL(IF(DetaliiFactură[Nr. factură]=rngFactură,ROW(DetaliiFactură[])-ROW(DetaliiFactură[#Headers])), ROW(13:13)), MATCH($E$8, DetaliiFactură[#Headers], 0)),"") ->  | F21: =IFERROR(INDEX(DetaliiFactură[],SMALL(IF(DetaliiFactură[Nr. factură]=rngFactură,ROW(DetaliiFactură[])-ROW(DetaliiFactură[#Headers])), ROW(13:13)), MATCH($F$8, DetaliiFactură[#Headers], 0)),"") -> 
B22: =IFERROR(INDEX(DetaliiFactură[],SMALL(IF(DetaliiFactură[Nr. factură]=rngFactură,ROW(DetaliiFactură[])-ROW(DetaliiFactură[#Headers])), ROW(14:14)), MATCH($B$8, DetaliiFactură[#Headers], 0)),"") ->  | C22: =IFERROR(INDEX(DetaliiFactură[],SMALL(IF(DetaliiFactură[Nr. factură]=rngFactură,ROW(DetaliiFactură[])-ROW(DetaliiFactură[#Headers])), ROW(14:14)), MATCH($C$8, DetaliiFactură[#Headers], 0)),"") ->  | D22: =IFERROR(INDEX(DetaliiFactură[],SMALL(IF(DetaliiFactură[Nr. factură]=rngFactură,ROW(DetaliiFactură[])-ROW(DetaliiFactură[#Headers])), ROW(14:14)), MATCH($D$8, DetaliiFactură[#Headers], 0)),"") ->  | E22: =IFERROR(INDEX(DetaliiFactură[],SMALL(IF(DetaliiFactură[Nr. factură]=rngFactură,ROW(DetaliiFactură[])-ROW(DetaliiFactură[#Headers])), ROW(14:14)), MATCH($E$8, DetaliiFactură[#Headers], 0)),"") ->  | F22: =IFERROR(INDEX(DetaliiFactură[],SMALL(IF(DetaliiFactură[Nr. factură]=rngFactură,ROW(DetaliiFactură[])-ROW(DetaliiFactură[#Headers])), ROW(14:14)), MATCH($F$8, DetaliiFactură[#Headers], 0)),"") -> 
B23: =IFERROR(INDEX(DetaliiFactură[],SMALL(IF(DetaliiFactură[Nr. factură]=rngFactură,ROW(DetaliiFactură[])-ROW(DetaliiFactură[#Headers])), ROW(15:15)), MATCH($B$8, DetaliiFactură[#Headers], 0)),"") ->  | C23: =IFERROR(INDEX(DetaliiFactură[],SMALL(IF(DetaliiFactură[Nr. factură]=rngFactură,ROW(DetaliiFactură[])-ROW(DetaliiFactură[#Headers])), ROW(15:15)), MATCH($C$8, DetaliiFactură[#Headers], 0)),"") ->  | D23: =IFERROR(INDEX(DetaliiFactură[],SMALL(IF(DetaliiFactură[Nr. factură]=rngFactură,ROW(DetaliiFactură[])-ROW(DetaliiFactură[#Headers])), ROW(15:15)), MATCH($D$8, DetaliiFactură[#Headers], 0)),"") ->  | E23: =IFERROR(INDEX(DetaliiFactură[],SMALL(IF(DetaliiFactură[Nr. factură]=rngFactură,ROW(DetaliiFactură[])-ROW(DetaliiFactură[#Headers])), ROW(15:15)), MATCH($E$8, DetaliiFactură[#Headers], 0)),"") ->  | F23: =IFERROR(INDEX(DetaliiFactură[],SMALL(IF(DetaliiFactură[Nr. factură]=rngFactură,ROW(DetaliiFactură[])-ROW(DetaliiFactură[#Headers])), ROW(15:15)), MATCH($F$8, DetaliiFactură[#Headers], 0)),"") -> 
B24: =IFERROR(INDEX(DetaliiFactură[],SMALL(IF(DetaliiFactură[Nr. factură]=rngFactură,ROW(DetaliiFactură[])-ROW(DetaliiFactură[#Headers])), ROW(16:16)), MATCH($B$8, DetaliiFactură[#Headers], 0)),"") ->  | C24: =IFERROR(INDEX(DetaliiFactură[],SMALL(IF(DetaliiFactură[Nr. factură]=rngFactură,ROW(DetaliiFactură[])-ROW(DetaliiFactură[#Headers])), ROW(16:16)), MATCH($C$8, DetaliiFactură[#Headers], 0)),"") ->  | D24: =IFERROR(INDEX(DetaliiFactură[],SMALL(IF(DetaliiFactură[Nr. factură]=rngFactură,ROW(DetaliiFactură[])-ROW(DetaliiFactură[#Headers])), ROW(16:16)), MATCH($D$8, DetaliiFactură[#Headers], 0)),"") ->  | E24: =IFERROR(INDEX(DetaliiFactură[],SMALL(IF(DetaliiFactură[Nr. factură]=rngFactură,ROW(DetaliiFactură[])-ROW(DetaliiFactură[#Headers])), ROW(16:16)), MATCH($E$8, DetaliiFactură[#Headers], 0)),"") ->  | F24: =IFERROR(INDEX(DetaliiFactură[],SMALL(IF(DetaliiFactură[Nr. factură]=rngFactură,ROW(DetaliiFactură[])-ROW(DetaliiFactură[#Headers])), ROW(16:16)), MATCH($F$8, DetaliiFactură[#Headers], 0)),"") -> 
B25: =IFERROR(INDEX(DetaliiFactură[],SMALL(IF(DetaliiFactură[Nr. factură]=rngFactură,ROW(DetaliiFactură[])-ROW(DetaliiFactură[#Headers])), ROW(17:17)), MATCH($B$8, DetaliiFactură[#Headers], 0)),"") ->  | C25: =IFERROR(INDEX(DetaliiFactură[],SMALL(IF(DetaliiFactură[Nr. factură]=rngFactură,ROW(DetaliiFactură[])-ROW(DetaliiFactură[#Headers])), ROW(17:17)), MATCH($C$8, DetaliiFactură[#Headers], 0)),"") ->  | D25: =IFERROR(INDEX(DetaliiFactură[],SMALL(IF(DetaliiFactură[Nr. factură]=rngFactură,ROW(DetaliiFactură[])-ROW(DetaliiFactură[#Headers])), ROW(17:17)), MATCH($D$8, DetaliiFactură[#Headers], 0)),"") ->  | E25: =IFERROR(INDEX(DetaliiFactură[],SMALL(IF(DetaliiFactură[Nr. factură]=rngFactură,ROW(DetaliiFactură[])-ROW(DetaliiFactură[#Headers])), ROW(17:17)), MATCH($E$8, DetaliiFactură[#Headers], 0)),"") ->  | F25: =IFERROR(INDEX(DetaliiFactură[],SMALL(IF(DetaliiFactură[Nr. factură]=rngFactură,ROW(DetaliiFactură[])-ROW(DetaliiFactură[#Headers])), ROW(17:17)), MATCH($F$8, DetaliiFactură[#Headers], 0)),"") -> 
B26: =IFERROR(INDEX(DetaliiFactură[],SMALL(IF(DetaliiFactură[Nr. factură]=rngFactură,ROW(DetaliiFactură[])-ROW(DetaliiFactură[#Headers])), ROW(18:18)), MATCH($B$8, DetaliiFactură[#Headers], 0)),"") ->  | C26: =IFERROR(INDEX(DetaliiFactură[],SMALL(IF(DetaliiFactură[Nr. factură]=rngFactură,ROW(DetaliiFactură[])-ROW(DetaliiFactură[#Headers])), ROW(18:18)), MATCH($C$8, DetaliiFactură[#Headers], 0)),"") ->  | D26: =IFERROR(INDEX(DetaliiFactură[],SMALL(IF(DetaliiFactură[Nr. factură]=rngFactură,ROW(DetaliiFactură[])-ROW(DetaliiFactură[#Headers])), ROW(18:18)), MATCH($D$8, DetaliiFactură[#Headers], 0)),"") ->  | E26: =IFERROR(INDEX(DetaliiFactură[],SMALL(IF(DetaliiFactură[Nr. factură]=rngFactură,ROW(DetaliiFactură[])-ROW(DetaliiFactură[#Headers])), ROW(18:18)), MATCH($E$8, DetaliiFactură[#Headers], 0)),"") ->  | F26: =IFERROR(INDEX(DetaliiFactură[],SMALL(IF(DetaliiFactură[Nr. factură]=rngFactură,ROW(DetaliiFactură[])-ROW(DetaliiFactură[#Headers])), ROW(18:18)), MATCH($F$8, DetaliiFactură[#Headers], 0)),"") -> 
B27: =IFERROR(INDEX(DetaliiFactură[],SMALL(IF(DetaliiFactură[Nr. factură]=rngFactură,ROW(DetaliiFactură[])-ROW(DetaliiFactură[#Headers])), ROW(19:19)), MATCH($B$8, DetaliiFactură[#Headers], 0)),"") ->  | C27: =IFERROR(INDEX(DetaliiFactură[],SMALL(IF(DetaliiFactură[Nr. factură]=rngFactură,ROW(DetaliiFactură[])-ROW(DetaliiFactură[#Headers])), ROW(19:19)), MATCH($C$8, DetaliiFactură[#Headers], 0)),"") ->  | D27: =IFERROR(INDEX(DetaliiFactură[],SMALL(IF(DetaliiFactură[Nr. factură]=rngFactură,ROW(DetaliiFactură[])-ROW(DetaliiFactură[#Headers])), ROW(19:19)), MATCH($D$8, DetaliiFactură[#Headers], 0)),"") ->  | E27: =IFERROR(INDEX(DetaliiFactură[],SMALL(IF(DetaliiFactură[Nr. factură]=rngFactură,ROW(DetaliiFactură[])-ROW(DetaliiFactură[#Headers])), ROW(19:19)), MATCH($E$8, DetaliiFactură[#Headers], 0)),"") ->  | F27: =IFERROR(INDEX(DetaliiFactură[],SMALL(IF(DetaliiFactură[Nr. factură]=rngFactură,ROW(DetaliiFactură[])-ROW(DetaliiFactură[#Headers])), ROW(19:19)), MATCH($F$8, DetaliiFactură[#Headers], 0)),"") -> 
B28: =IFERROR(INDEX(DetaliiFactură[],SMALL(IF(DetaliiFactură[Nr. factură]=rngFactură,ROW(DetaliiFactură[])-ROW(DetaliiFactură[#Headers])), ROW(20:20)), MATCH($B$8, DetaliiFactură[#Headers], 0)),"") ->  | C28: =IFERROR(INDEX(DetaliiFactură[],SMALL(IF(DetaliiFactură[Nr. factură]=rngFactură,ROW(DetaliiFactură[])-ROW(DetaliiFactură[#Headers])), ROW(20:20)), MATCH($C$8, DetaliiFactură[#Headers], 0)),"") ->  | D28: =IFERROR(INDEX(DetaliiFactură[],SMALL(IF(DetaliiFactură[Nr. factură]=rngFactură,ROW(DetaliiFactură[])-ROW(DetaliiFactură[#Headers])), ROW(20:20)), MATCH($D$8, DetaliiFactură[#Headers], 0)),"") ->  | E28: =IFERROR(INDEX(DetaliiFactură[],SMALL(IF(DetaliiFactură[Nr. factură]=rngFactură,ROW(DetaliiFactură[])-ROW(DetaliiFactură[#Headers])), ROW(20:20)), MATCH($E$8, DetaliiFactură[#Headers], 0)),"") ->  | F28: =IFERROR(INDEX(DetaliiFactură[],SMALL(IF(DetaliiFactură[Nr. factură]=rngFactură,ROW(DetaliiFactură[])-ROW(DetaliiFactură[#Headers])), ROW(20:20)), MATCH($F$8, DetaliiFactură[#Headers], 0)),"") -> 
B29: =IFERROR(INDEX(DetaliiFactură[],SMALL(IF(DetaliiFactură[Nr. factură]=rngFactură,ROW(DetaliiFactură[])-ROW(DetaliiFactură[#Headers])), ROW(21:21)), MATCH($B$8, DetaliiFactură[#Headers], 0)),"") ->  | C29: =IFERROR(INDEX(DetaliiFactură[],SMALL(IF(DetaliiFactură[Nr. factură]=rngFactură,ROW(DetaliiFactură[])-ROW(DetaliiFactură[#Headers])), ROW(21:21)), MATCH($C$8, DetaliiFactură[#Headers], 0)),"") ->  | D29: =IFERROR(INDEX(DetaliiFactură[],SMALL(IF(DetaliiFactură[Nr. factură]=rngFactură,ROW(DetaliiFactură[])-ROW(DetaliiFactură[#Headers])), ROW(21:21)), MATCH($D$8, DetaliiFactură[#Headers], 0)),"") ->  | E29: =IFERROR(INDEX(DetaliiFactură[],SMALL(IF(DetaliiFactură[Nr. factură]=rngFactură,ROW(DetaliiFactură[])-ROW(DetaliiFactură[#Headers])), ROW(21:21)), MATCH($E$8, DetaliiFactură[#Headers], 0)),"") ->  | F29: =IFERROR(INDEX(DetaliiFactură[],SMALL(IF(DetaliiFactură[Nr. factură]=rngFactură,ROW(DetaliiFactură[])-ROW(DetaliiFactură[#Headers])), ROW(21:21)), MATCH($F$8, DetaliiFactură[#Headers], 0)),"") -> 
B30: =IFERROR(INDEX(DetaliiFactură[],SMALL(IF(DetaliiFactură[Nr. factură]=rngFactură,ROW(DetaliiFactură[])-ROW(DetaliiFactură[#Headers])), ROW(22:22)), MATCH($B$8, DetaliiFactură[#Headers], 0)),"") ->  | C30: =IFERROR(INDEX(DetaliiFactură[],SMALL(IF(DetaliiFactură[Nr. factură]=rngFactură,ROW(DetaliiFactură[])-ROW(DetaliiFactură[#Headers])), ROW(22:22)), MATCH($C$8, DetaliiFactură[#Headers], 0)),"") ->  | D30: =IFERROR(INDEX(DetaliiFactură[],SMALL(IF(DetaliiFactură[Nr. factură]=rngFactură,ROW(DetaliiFactură[])-ROW(DetaliiFactură[#Headers])), ROW(22:22)), MATCH($D$8, DetaliiFactură[#Headers], 0)),"") ->  | E30: =IFERROR(INDEX(DetaliiFactură[],SMALL(IF(DetaliiFactură[Nr. factură]=rngFactură,ROW(DetaliiFactură[])-ROW(DetaliiFactură[#Headers])), ROW(22:22)), MATCH($E$8, DetaliiFactură[#Headers], 0)),"") ->  | F30: =IFERROR(INDEX(DetaliiFactură[],SMALL(IF(DetaliiFactură[Nr. factură]=rngFactură,ROW(DetaliiFactură[])-ROW(DetaliiFactură[#Headers])), ROW(22:22)), MATCH($F$8, DetaliiFactură[#Headers], 0)),"") -> 
B31: =IFERROR(INDEX(DetaliiFactură[],SMALL(IF(DetaliiFactură[Nr. factură]=rngFactură,ROW(DetaliiFactură[])-ROW(DetaliiFactură[#Headers])), ROW(23:23)), MATCH($B$8, DetaliiFactură[#Headers], 0)),"") ->  | C31: =IFERROR(INDEX(DetaliiFactură[],SMALL(IF(DetaliiFactură[Nr. factură]=rngFactură,ROW(DetaliiFactură[])-ROW(DetaliiFactură[#Headers])), ROW(23:23)), MATCH($C$8, DetaliiFactură[#Headers], 0)),"") ->  | D31: =IFERROR(INDEX(DetaliiFactură[],SMALL(IF(DetaliiFactură[Nr. factură]=rngFactură,ROW(DetaliiFactură[])-ROW(DetaliiFactură[#Headers])), ROW(23:23)), MATCH($D$8, DetaliiFactură[#Headers], 0)),"") ->  | E31: =IFERROR(INDEX(DetaliiFactură[],SMALL(IF(DetaliiFactură[Nr. factură]=rngFactură,ROW(DetaliiFactură[])-ROW(DetaliiFactură[#Headers])), ROW(23:23)), MATCH($E$8, DetaliiFactură[#Headers], 0)),"") ->  | F31: =IFERROR(INDEX(DetaliiFactură[],SMALL(IF(DetaliiFactură[Nr. factură]=rngFactură,ROW(DetaliiFactură[])-ROW(DetaliiFactură[#Headers])), ROW(23:23)), MATCH($F$8, DetaliiFactură[#Headers], 0)),"") -> 
B32: =IFERROR(INDEX(DetaliiFactură[],SMALL(IF(DetaliiFactură[Nr. factură]=rngFactură,ROW(DetaliiFactură[])-ROW(DetaliiFactură[#Headers])), ROW(24:24)), MATCH($B$8, DetaliiFactură[#Headers], 0)),"") ->  | C32: =IFERROR(INDEX(DetaliiFactură[],SMALL(IF(DetaliiFactură[Nr. factură]=rngFactură,ROW(DetaliiFactură[])-ROW(DetaliiFactură[#Headers])), ROW(24:24)), MATCH($C$8, DetaliiFactură[#Headers], 0)),"") ->  | D32: =IFERROR(INDEX(DetaliiFactură[],SMALL(IF(DetaliiFactură[Nr. factură]=rngFactură,ROW(DetaliiFactură[])-ROW(DetaliiFactură[#Headers])), ROW(24:24)), MATCH($D$8, DetaliiFactură[#Headers], 0)),"") ->  | E32: =IFERROR(INDEX(DetaliiFactură[],SMALL(IF(DetaliiFactură[Nr. factură]=rngFactură,ROW(DetaliiFactură[])-ROW(DetaliiFactură[#Headers])), ROW(24:24)), MATCH($E$8, DetaliiFactură[#Headers], 0)),"") ->  | F32: =IFERROR(INDEX(DetaliiFactură[],SMALL(IF(DetaliiFactură[Nr. factură]=rngFactură,ROW(DetaliiFactură[])-ROW(DetaliiFactură[#Headers])), ROW(24:24)), MATCH($F$8, DetaliiFactură[#Headers], 0)),"") -> 
B33: =IFERROR(INDEX(DetaliiFactură[],SMALL(IF(DetaliiFactură[Nr. factură]=rngFactură,ROW(DetaliiFactură[])-ROW(DetaliiFactură[#Headers])), ROW(25:25)), MATCH($B$8, DetaliiFactură[#Headers], 0)),"") ->  | C33: =IFERROR(INDEX(DetaliiFactură[],SMALL(IF(DetaliiFactură[Nr. factură]=rngFactură,ROW(DetaliiFactură[])-ROW(DetaliiFactură[#Headers])), ROW(25:25)), MATCH($C$8, DetaliiFactură[#Headers], 0)),"") ->  | D33: =IFERROR(INDEX(DetaliiFactură[],SMALL(IF(DetaliiFactură[Nr. factură]=rngFactură,ROW(DetaliiFactură[])-ROW(DetaliiFactură[#Headers])), ROW(25:25)), MATCH($D$8, DetaliiFactură[#Headers], 0)),"") ->  | E33: =IFERROR(INDEX(DetaliiFactură[],SMALL(IF(DetaliiFactură[Nr. factură]=rngFactură,ROW(DetaliiFactură[])-ROW(DetaliiFactură[#Headers])), ROW(25:25)), MATCH($E$8, DetaliiFactură[#Headers], 0)),"") ->  | F33: =IFERROR(INDEX(DetaliiFactură[],SMALL(IF(DetaliiFactură[Nr. factură]=rngFactură,ROW(DetaliiFactură[])-ROW(DetaliiFactură[#Headers])), ROW(25:25)), MATCH($F$8, DetaliiFactură[#Headers], 0)),"") -> 
F34: Subtotal factură | G34: =SUM(ProiectFactură[Preț]) -> 2,014.00 lei
F35: Rata de impozitare | G35: =VLOOKUP(rngFactură,FacturiPrincipale[],5) -> 8.75%
F36: Impozit pe vânzări | G36: =G34*G35 -> 176.23 lei
F37: Altele | G37: =VLOOKUP(rngFactură,FacturiPrincipale[],6) -> 0
B38: ="Totalul din noiembrie "&NumeFirmă&"." -> Totalul din noiembrie Numele firmei. | F38: Avans primit | G38: =VLOOKUP(rngFactură,FacturiPrincipale[],7) -> 0
B39: Total datorat în <nr.> zile. Conturile cu scadență depășită pot fi taxate cu <nr.>% pe lună. | F39: TOTAL | G39: =(G34+G36+G37)-G38 -> 2,190.23 lei

Sheet Clienți
C2: Clienți
B3: Căutare | C3: Nr. firmă | D3: Numele firmei | E3: Nume persoană de contact | F3: Adresă | G3: Localitate | H3: Județ | I3: Cod poștal | J3: Telefon | K3: E-mail | L3: Fax
B4: =C4& " - "&D4 -> 1 - Tailspin Toys | C4: 1 | D4: Tailspin Toys | E4: Alin Olteanu | F4: Strada Cireșilor 345 | G4: Arad | H4: AR | I4: 123456 | J4: 432 555 0178 | K4: cineva@example.com | L4: 432 555 0187
B5: 2 - Contoso, Ltd | C5: 2 | D5: Contoso, Ltd | E5: Emil Moldovan | F5: Aleea Castanilor 567 | G5: Moreni | H5: DB | I5: 098765 | J5: 432 555 0189 | K5: cineva@example.com | L5: 432 555 0123
B6: Totaluri | C6: ="Total Clienți: "&SUBTOTAL(103,ListăClienți[Nr. firmă]) -> Total Clienți: 2

Sheet Facturi - principale
B2: Facturi
B3: Nr. factură | C3: Firmă | D3: Data facturii | E3: Descrierea proiectului | F3: Rata de impozitare | G3: Altele | H3: Depozit | I3: Total detalii | J3: Total factură | K3: Note
B4: 3-456-1 | C4: 1 - Tailspin Toys | D4: =TODAY() -> 4367500.00% | E4: Proiectul 1 | F4: 8.75% | G4: 100.00 lei | H4: 100.00 lei | I4: =SUMIF(DetaliiFactură[Nr. factură],"="&FacturiPrincipale[[#This Row],[Nr. factură]],DetaliiFactură[Total]) -> 5,200.00 lei | J4: =(FacturiPrincipale[[#This Row],[Total detalii]]*(1+FacturiPrincipale[[#This Row],[Rata de impozitare]]))+FacturiPrincipale[[#This Row],[Altele]]-FacturiPrincipale[[#This Row],[Depozit]] -> 5,655.00 lei
B5: 3-456-2 | C5: 2 - Contoso, Ltd | D5: =TODAY()+10 -> 4368500.00% | E5: Proiectul 2 | F5: 8.75% | I5: =SUMIF(DetaliiFactură[Nr. factură],"="&FacturiPrincipale[[#This Row],[Nr. factură]],DetaliiFactură[Total]) -> 2,014.00 lei | J5: =(FacturiPrincipale[[#This Row],[Total detalii]]*(1+FacturiPrincipale[[#This Row],[Rata de impozitare]]))+FacturiPrincipale[[#This Row],[Altele]]-FacturiPrincipale[[#This Row],[Depozit]] -> 2,190.23 lei
B6: Totaluri | C6: ="Total Invoices: "&SUBTOTAL(103,FacturiPrincipale[Nr. factură]) -> Total Invoices: 2 | G6: =SUBTOTAL(109,FacturiPrincipale[Altele]) -> 100.00 lei | H6: =SUBTOTAL(109,FacturiPrincipale[Depozit]) -> 100.00 lei | I6: =SUBTOTAL(109,FacturiPrincipale[Total detalii]) -> 7,214.00 lei | J6: =SUBTOTAL(109,FacturiPrincipale[Total factură]) -> 7,845.23 lei

Sheet Detalii factură
B2: Detalii factură
B3: Descriere | C3: Nr. factură | D3: Nr. articol | E3: Cantitate | F3: Preț unitar | G3: Reducere | H3: Total
B4: Factură 3-456-1 Data 1 | C4: 3-456-1 | D4: 1 | E4: 1 | F4: 1.00 lei | G4: 1.00 lei | H4: =(DetaliiFactură[[#This Row],[Cantitate]]*DetaliiFactură[[#This Row],[Preț unitar]])-DetaliiFactură[[#This Row],[Reducere]] -> 0.00 lei
B5: Factură 3-456-1 Data 2 | C5: 3-456-1 | D5: 2 | E5: 2 | F5: 2.00 lei | G5: 2.00 lei | H5: =(DetaliiFactură[[#This Row],[Cantitate]]*DetaliiFactură[[#This Row],[Preț unitar]])-DetaliiFactură[[#This Row],[Reducere]] -> 2.00 lei
B6: Factură 3-456-1 Data 3 | C6: 3-456-1 | D6: 3 | E6: 3 | F6: 3.00 lei | G6: 3.00 lei | H6: =(DetaliiFactură[[#This Row],[Cantitate]]*DetaliiFactură[[#This Row],[Preț unitar]])-DetaliiFactură[[#This Row],[Reducere]] -> 6.00 lei
B7: Factură 3-456-1 Data 4 | C7: 3-456-1 | D7: 4 | E7: 4 | F7: 4.00 lei | G7: 4.00 lei | H7: =(DetaliiFactură[[#This Row],[Cantitate]]*DetaliiFactură[[#This Row],[Preț unitar]])-DetaliiFactură[[#This Row],[Reducere]] -> 12.00 lei
B8: Factură 3-456-1 Data 5 | C8: 3-456-1 | D8: 5 | E8: 5 | F8: 5.00 lei | G8: 5.00 lei | H8: =(DetaliiFactură[[#This Row],[Cantitate]]*DetaliiFactură[[#This Row],[Preț unitar]])-DetaliiFactură[[#This Row],[Reducere]] -> 20.00 lei
B9: Factură 3-456-1 Data 6 | C9: 3-456-1 | D9: 6 | E9: 6 | F9: 6.00 lei | G9: 6.00 lei | H9: =(DetaliiFactură[[#This Row],[Cantitate]]*DetaliiFactură[[#This Row],[Preț unitar]])-DetaliiFactură[[#This Row],[Reducere]] -> 30.00 lei
B10: Factură 3-456-1 Data 7 | C10: 3-456-1 | D10: 7 | E10: 7 | F10: 7.00 lei | G10: 7.00 lei | H10: =(DetaliiFactură[[#This Row],[Cantitate]]*DetaliiFactură[[#This Row],[Preț unitar]])-DetaliiFactură[[#This Row],[Reducere]] -> 42.00 lei
B11: Factură 3-456-1 Data 8 | C11: 3-456-1 | D11: 8 | E11: 8 | F11: 8.00 lei | G11: 8.00 lei | H11: =(DetaliiFactură[[#This Row],[Cantitate]]*DetaliiFactură[[#This Row],[Preț unitar]])-DetaliiFactură[[#This Row],[Reducere]] -> 56.00 lei
B12: Factură 3-456-1 Data 9 | C12: 3-456-1 | D12: 9 | E12: 9 | F12: 9.00 lei | G12: 9.00 lei | H12: =(DetaliiFactură[[#This Row],[Cantitate]]*DetaliiFactură[[#This Row],[Preț unitar]])-DetaliiFactură[[#This Row],[Reducere]] -> 72.00 lei
B13: Factură 3-456-1 Data 10 | C13: 3-456-1 | D13: 10 | E13: 10 | F13: 10.00 lei | G13: 10.00 lei | H13: =(DetaliiFactură[[#This Row],[Cantitate]]*DetaliiFactură[[#This Row],[Preț unitar]])-DetaliiFactură[[#This Row],[Reducere]] -> 90.00 lei
B14: Factură 3-456-1 Data 11 | C14: 3-456-1 | D14: 11 | E14: 11 | F14: 11.00 lei | G14: 11.00 lei | H14: =(DetaliiFactură[[#This Row],[Cantitate]]*DetaliiFactură[[#This Row],[Preț unitar]])-DetaliiFactură[[#This Row],[Reducere]] -> 110.00 lei
B15: Factură 3-456-1 Data 12 | C15: 3-456-1 | D15: 12 | E15: 12 | F15: 12.00 lei | G15: 12.00 lei | H15: =(DetaliiFactură[[#This Row],[Cantitate]]*DetaliiFactură[[#This Row],[Preț unitar]])-DetaliiFactură[[#This Row],[Reducere]] -> 132.00 lei
B16: Factură 3-456-1 Data 13 | C16: 3-456-1 | D16: 13 | E16: 13 | F16: 13.00 lei | G16: 13.00 lei | H16: =(DetaliiFactură[[#This Row],[Cantitate]]*DetaliiFactură[[#This Row],[Preț unitar]])-DetaliiFactură[[#This Row],[Reducere]] -> 156.00 lei
B17: Factură 3-456-1 Data 14 | C17: 3-456-1 | D17: 14 | E17: 14 | F17: 14.00 lei | G17: 14.00 lei | H17: =(DetaliiFactură[[#This Row],[Cantitate]]*DetaliiFactură[[#This Row],[Preț unitar]])-DetaliiFactură[[#This Row],[Reducere]] -> 182.00 lei
B18: Factură 3-456-1 Data 15 | C18: 3-456-1 | D18: 15 | E18: 15 | F18: 15.00 lei | G18: 15.00 lei | H18: =(DetaliiFactură[[#This Row],[Cantitate]]*DetaliiFactură[[#This Row],[Preț unitar]])-DetaliiFactură[[#This Row],[Reducere]] -> 210.00 lei
B19: Factură 3-456-1 Data 16 | C19: 3-456-1 | D19: 16 | E19: 16 | F19: 16.00 lei | G19: 16.00 lei | H19: =(DetaliiFactură[[#This Row],[Cantitate]]*DetaliiFactură[[#This Row],[Preț unitar]])-DetaliiFactură[[#This Row],[Reducere]] -> 240.00 lei
B20: Factură 3-456-1 Data 17 | C20: 3-456-1 | D20: 17 | E20: 17 | F20: 17.00 lei | G20: 17.00 lei | H20: =(DetaliiFactură[[#This Row],[Cantitate]]*DetaliiFactură[[#This Row],[Preț unitar]])-DetaliiFactură[[#This Row],[Reducere]] -> 272.00 lei
B21: Factură 3-456-1 Data 18 | C21: 3-456-1 | D21: 18 | E21: 18 | F21: 18.00 lei | G21: 18.00 lei | H21: =(DetaliiFactură[[#This Row],[Cantitate]]*DetaliiFactură[[#This Row],[Preț unitar]])-DetaliiFactură[[#This Row],[Reducere]] -> 306.00 lei
B22: Factură 3-456-1 Data 19 | C22: 3-456-1 | D22: 19 | E22: 19 | F22: 19.00 lei | G22: 19.00 lei | H22: =(DetaliiFactură[[#This Row],[Cantitate]]*DetaliiFactură[[#This Row],[Preț unitar]])-DetaliiFactură[[#This Row],[Reducere]] -> 342.00 lei
B23: Factură 3-456-1 Data 20 | C23: 3-456-1 | D23: 20 | E23: 20 | F23: 20.00 lei | G23: 20.00 lei | H23: =(DetaliiFactură[[#This Row],[Cantitate]]*DetaliiFactură[[#This Row],[Preț unitar]])-DetaliiFactură[[#This Row],[Reducere]] -> 380.00 lei
B24: Factură 3-456-1 Data 21 | C24: 3-456-1 | D24: 21 | E24: 21 | F24: 21.00 lei | G24: 21.00 lei | H24: =(DetaliiFactură[[#This Row],[Cantitate]]*DetaliiFactură[[#This Row],[Preț unitar]])-DetaliiFactură[[#This Row],[Reducere]] -> 420.00 lei
B25: Factură 3-456-1 Data 22 | C25: 3-456-1 | D25: 22 | E25: 22 | F25: 22.00 lei | G25: 22.00 lei | H25: =(DetaliiFactură[[#This Row],[Cantitate]]*DetaliiFactură[[#This Row],[Preț unitar]])-DetaliiFactură[[#This Row],[Reducere]] -> 462.00 lei
B26: Factură 3-456-1 Data 23 | C26: 3-456-1 | D26: 23 | E26: 23 | F26: 23.00 lei | G26: 23.00 lei | H26: =(DetaliiFactură[[#This Row],[Cantitate]]*DetaliiFactură[[#This Row],[Preț unitar]])-DetaliiFactură[[#This Row],[Reducere]] -> 506.00 lei
B27: Factură 3-456-1 Data 24 | C27: 3-456-1 | D27: 24 | E27: 24 | F27: 24.00 lei | G27: 24.00 lei | H27: =(DetaliiFactură[[#This Row],[Cantitate]]*DetaliiFactură[[#This Row],[Preț unitar]])-DetaliiFactură[[#This Row],[Reducere]] -> 552.00 lei
B28: Factură 3-456-1 Data 25 | C28: 3-456-1 | D28: 25 | E28: 25 | F28: 25.00 lei | G28: 25.00 lei | H28: =(DetaliiFactură[[#This Row],[Cantitate]]*DetaliiFactură[[#This Row],[Preț unitar]])-DetaliiFactură[[#This Row],[Reducere]] -> 600.00 lei
B29: Factură 3-456-2 Data 1 | C29: 3-456-2 | D29: Z4567 | E29: 39 | F29: 5.00 lei | H29: =(DetaliiFactură[[#This Row],[Cantitate]]*DetaliiFactură[[#This Row],[Preț unitar]])-DetaliiFactură[[#This Row],[Reducere]] -> 195.00 lei
B30: Factură 3-456-2 Data 2 | C30: 3-456-2 | D30: Z4568 | E30: 40 | F30: 4.00 lei | G30: 5.00 lei | H30: =(DetaliiFactură[[#This Row],[Cantitate]]*DetaliiFactură[[#This Row],[Preț unitar]])-DetaliiFactură[[#This Row],[Reducere]] -> 155.00 lei
B31: Factură 3-456-2 Data 3 | C31: 3-456-2 | D31: Z4569 | E31: 30 | F31: 6.00 lei | G31: 7.00 lei | H31: =(DetaliiFactură[[#This Row],[Cantitate]]*DetaliiFactură[[#This Row],[Preț unitar]])-DetaliiFactură[[#This Row],[Reducere]] -> 173.00 lei
B32: Factură 3-456-2 Data 4 | C32: 3-456-2 | D32: Z4570 | E32: 40 | F32: 7.00 lei | H32: =(DetaliiFactură[[#This Row],[Cantitate]]*DetaliiFactură[[#This Row],[Preț unitar]])-DetaliiFactură[[#This Row],[Reducere]] -> 280.00 lei
B33: Factură 3-456-2 Data 5 | C33: 3-456-2 | D33: Z4571 | E33: 10 | F33: 4.00 lei | H33: =(DetaliiFactură[[#This Row],[Cantitate]]*DetaliiFactură[[#This Row],[Preț unitar]])-DetaliiFactură[[#This Row],[Reducere]] -> 40.00 lei
B34: Factură 3-456-2 Data 6 | C34: 3-456-2 | D34: Z4572 | E34: 5 | F34: 8.00 lei | H34: =(DetaliiFactură[[#This Row],[Cantitate]]*DetaliiFactură[[#This Row],[Preț unitar]])-DetaliiFactură[[#This Row],[Reducere]] -> 40.00 lei
B35: Factură 3-456-2 Data 7 | C35: 3-456-2 | D35: Z4573 | E35: 70 | F35: 6.00 lei | H35: =(DetaliiFactură[[#This Row],[Cantitate]]*DetaliiFactură[[#This Row],[Preț unitar]])-DetaliiFactură[[#This Row],[Reducere]] -> 420.00 lei
B36: Factură 3-456-2 Data 8 | C36: 3-456-2 | D36: Z4574 | E36: 25 | F36: 4.00 lei | H36: =(DetaliiFactură[[#This Row],[Cantitate]]*DetaliiFactură[[#This Row],[Preț unitar]])-DetaliiFactură[[#This Row],[Reducere]] -> 100.00 lei
B37: Factură 3-456-2 Data 9 | C37: 3-456-2 | D37: Z4575 | E37: 5 | F37: 7.00 lei | G37: 3.00 lei | H37: =(DetaliiFactură[[#This Row],[Cantitate]]*DetaliiFactură[[#This Row],[Preț unitar]])-DetaliiFactură[[#This Row],[Reducere]] -> 32.00 lei
B38: Factură 3-456-2 Data 10 | C38: 3-456-2 | D38: Z4576 | E38: 80 | F38: 1.00 lei | H38: =(DetaliiFactură[[#This Row],[Cantitate]]*DetaliiFactură[[#This Row],[Preț unitar]])-DetaliiFactură[[#This Row],[Reducere]] -> 80.00 lei
B39: Factură 3-456-2 Data 11 | C39: 3-456-2 | D39: Z4577 | E39: 65 | F39: 7.00 lei | H39: =(DetaliiFactură[[#This Row],[Cantitate]]*DetaliiFactură[[#This Row],[Preț unitar]])-DetaliiFactură[[#This Row],[Reducere]] -> 455.00 lei
B40: Factură 3-456-2 Data 12 | C40: 3-456-2 | D40: Z4578 | E40: 44 | F40: 1.00 lei | H40: =(DetaliiFactură[[#This Row],[Cantitate]]*DetaliiFactură[[#This Row],[Preț unitar]])-DetaliiFactură[[#This Row],[Reducere]] -> 44.00 lei

Sheet Despre instrumentul de monitori
B1: Despre instrumentul de monitorizare a facturilor
B4: Instrumentul de monitorizare a facturilor este proiectat pentru a ține un istoric al clienților, al facturilor și al detaliilor facturilor, astfel încât să puteți stoca mai multe facturi fără a crea mai multe fișiere. De asemenea, puteți utiliza acest instrument de monitorizare a facturilor pentru a analiza datele despre facturile anterioare. De exemplu, puteți să vizualizați toate facturile pentru un client, pentru un anumit proiect sau să vizualizați toate facturile de luna trecută, de anul trecut și multe altele.
B5: Înainte de a începe, uitați-vă la datele eșantion furnizate. În foaia Factură, dacă selectați celula din dreapta Nr. factură (celula L8) va apărea o listă verticală. Selectați săgeata verticală, apoi alegeți o factură eșantion. Observați cum se modifică automat toate informațiile despre factură, pentru a reflecta factura selectată. Acum uitați-vă la foile Clienți, Facturi - principal și Detalii facturi. Fiecare dintre aceste foi furnizează informații către foaia Factură și orice modificări faceți se actualizează automat.
B6: Cum încep ?
B7: Modificați foaia Factură prin următorii pași, astfel încât să reflecte informațiile despre firma dvs.:
B8: 1. | C8: Navigați la foaia Factură și pe fila Revizuire, în grupul Protejare, selectați Deprotejare foaie.
C9: Notă: Foaia Factură este protejată pentru a evita modificările neintenționate, deoarece, după cum am menționat anterior, majoritatea datelor din această foaie sunt trase din toate celelalte foi ale registrului de lucru.
B10: 2. | C10: Particularizarea antetului facturii se face introducând numele firmei, adresa poștală, localitatea, cod poștal, adresa de e-mail, site-ul web și așa mai departe. În partea de jos a facturii (rândul 43), se modifică instrucțiunile de plată.
C11: Important! Nu modificați informațiile de facturare Toate aceste celule au formule care vor actualiza automat factura, așa cum se menționează în secțiunea Despre instrumentul de monitorizare a facturilor.
B12: 3. | C12: (Opțional) Modificați culorile din întregul registru de lucru: În fila Aspect Pagină, în grupul Teme, selectați Culori și alegeți alt set de culori al temei din galeria de culori.
B13: Sfat: Creați un set de culori al temei particularizat care să se asorteze cu sigla firmei! Pentru a face acest lucru, în fila Aspect Pagină, în grupul Teme, selectați Culori, apoi selectați Particularizare culori. Pentru mai multe informații despre crearea unui set de culori particularizat, vizualizați următorul subiect de ajutor:
C14: Particularizarea unei teme de document.
B15: 4. | C15: După ce ați efectuat modificările dorite, reveniți la foaia Factură și, pe fila Revizuire, în grupul Modificări, selectați Protejare foaie, apoi selectați OK. Atunci când foaia Factură este protejată, singura celulă pe care o puteți selecta este celula cu lista verticală Nr. factură.
B16: Cum creez o factură?
B17: 1. | C17: În foaia Clienți, introduceți informații despre clienți, cum ar fi numele și adresa firmei. Rețineți că Nr. firmă este o intrare importantă, deoarece furnizează un identificator unic pentru fiecare firmă utilizată în instrumentul de monitorizare a facturilor. De asemenea, rețineți că trebuie să adăugați o firmă doar o singură dată. Pentru facturile ulterioare către aceeași firmă, acest pas nu mai este necesar.
C18: Notă: Dacă atribuiți același număr mai multor firme sau introduceți același nume de firmă de mai multe ori, intrările vor deveni roșii pentru a vă alerta cu privire la duplicare.
B19: 2. | C19: În foaia Facturi - principal, introduceți informațiile principale ale facturii, cum ar fi Nr. factură, Data facturii și Descrierea proiectului. La fel ca în cazul Nr. firmă, Nr. factură este o intrare importantă, deoarece furnizează un identificator unic pentru fiecare factură și este utilizat în tot Instrumentul de monitorizare a facturilor. O altă intrare importantă este firma. Atunci când selectați o firmă din lista verticală, factura va fi asociată cu acea firmă. Apoi, atunci când selectați un Nr. factură pe foaia Factură, informațiile despre firmă precum numele și adresa firmei, vor apărea automat în Factură.
C20: Notă: Dacă atribuiți același număr mai multor facturi, intrările vor deveni roșii pentru a vă alerta cu privire la duplicare.
B21: 3. | C21: În foaia Detalii factură, introduceți detaliile facturii, cum ar fi o descriere a articolului, numărul articolului, cantitate și preț unitar. Lista verticală din Factură furnizează o listă de facturi pe care le-ați introdus anterior în foaia Facturi - principal pentru a facilita introducerea datelor. La fel ca în cazul Nr. firmă de la pasul anterior, Nr.factură asociază articolul detaliat cu o anumită factură. Atunci când selectați un număr de factură din foaia Factură de la lista verticală Nr. factură, vor apărea articolele detaliate din acea factură.
C22: Notă: Există o limită de 25 de articole pe factură. Dacă se adaugă mai mult de 25 de articole, toate intrările respective vor deveni roșii pentru a vă alerta cu privire la această limitare. Dacă aveți de facturat mai mult de 25 de articole, va trebui să creați o a doua factură.
B23: Cum adaug clienți, facturi și detalii despre facturi?
B24: Datele despre Clienți, Facturi și Detalii despre facturi sunt stocate în tabele Excel. Atunci când adăugați un rând nou la un tabel, rândul va fi formatat automat și toate calculele vor fi copiate. Pentru a adăuga rânduri noi de tabel, alegeți una dintre următoarele:
B25: ● | C25: Dacă tabelul nu are un rând de Total, începeți să tastați sub tabel și acesta se va extinde automat atunci când apăsați tasta Enter sau Tab.
B26: ● | C26: Plasați indicatorul de celulă în ultima celulă de deasupra rândului de Total, de exemplu în tabelul Facturi, în celula cu Note de la ultima factură, apoi apăsați tasta Tab.
B27: ● | C27: Pe fila Pornire, în grupul Celule, selectați Inserare, apoi selectați Rând deasupra sau Rând dedesubt.
B28: ● | C28: În colțul din dreapta jos al tabelului, plasați mouse-ul pe ghidajul de dimensionare a tabelului și glisați în jos pentru a mări numărul de rânduri de tabel disponibile.
B29: Cum analizez detaliile facturii?
B30: Așa cum se menționează în secțiunea Despre instrumentul de monitorizare a facturilor, după ce introduceți mai multe facturi, puteți vedea o listă cu toate facturile pentru un anumit client, pentru un anumit proiect, pentru o anumită perioadă și multe altele. Acest tip de analiză se realizează utilizând un filtru care vă permite să restrângeți rapid o listă de date. Pentru a accesa un filtru în tabelele Clienți, Facturi sau Detalii despre facturi, selectați săgeata verticală de lângă orice nume de câmp din tabele. Va apărea un panou de filtrare care oferă o varietate de opțiuni de filtrare. Iată câteva exemple de filtrare pentru a vă ajuta să începeți:
B31: ● | C31: Pentru a vedea suma totală pe care i-ați facturat-o unui anumit client: În foaia Facturi - principal, în partea dreaptă a câmpului Nr. firmă, selectați săgeata verticală. În panoul de filtrare, faceți clic pe Selectare totală pentru a deselecta toate firmele, alegeți firma dorită, apoi selectați OK.
C32: Sfat: În panoul Filtrare puteți, de asemenea, să tastați numele clientului în caseta text Căutare pentru a căuta rapid în lista disponibilă.
B33: ● | C33: Pentru a vedea toate facturile pentru un anumit client și pentru un anumit proiect(e): Începeți prin a filtra după clientul dorit utilizând pașii de la exemplul anterior. Apoi, în partea dreapta Nr. proiect, selectați săgeata verticală. În panoul de filtrare, selectați proiectul sau proiectele dorite, apoi selectați OK.
B34: ● | C34: Pentru a vedea toate facturile de luna precedentă: În foaia Facturi - principal, în partea dreaptă a câmpului Data facturii, selectați săgeata verticală, alegeți filtre de dată, apoi selectați luna trecută.
B35: ● | C35: Pentru a vedea toți clienții cu același prefix zonal: În foaia Clienți, în partea dreaptă a câmpului Telefon, selectați săgeata verticală. În panoul de filtrare, faceți clic în caseta text Căutare, tastați prefixul, apoi selectați OK.
B36: Sfaturi pentru filtrare
B37: ● | C37: Dacă tabelul are un rând de total, precum tabelul Clienți sau Facturi, totalurile calculate vor reflecta doar lista filtrată.
B38: ● | C38: Pentru a regla cu precizie rezultatele, folosiți filtre multiple pe un câmp sau pe mai multe câmpuri.
B39: ● | C39: Pentru a șterge un singur filtru, selectați săgeata verticală de la o coloană filtrată anterior, apoi selectați Golire filtru la <nume câmp>.
B40: ● | C40: Pentru a șterge mai multe filtre în același timp, plasați indicatorul de celulă în tabel, apoi în fila Pornire, în grupul Editare selectați Sortare și filtrare, apoi selectați Golire.
